bitfinex-derivatives/quotes_ETHF0:USTF0_20260310
["timestamp","ask_amount","ask_price","bid_price","bid_amount"]
[1773107170577,3.43968268,2010.4,2010.0,3.59417721]
[1773107171576,3.4043294,2010.5,2010.0,3.59417721]
[1773107172478,3.40803947,2010.5,2010.0,3.59417721]
[1773107172676,0.24865,2010.7,2010.0,3.59417721]
[1773107172876,3.39915957,2011.6,2010.7,3.58946942]
[1773107173082,3.39915957,2011.6,2011.0,3.58946942]
[1773107173783,3.40471995,2011.6,2011.0,3.58946942]
[1773107175484,0.00556038,2011.6,2011.0,3.58946942]
[1773107177885,3.51354523,2011.8,2011.0,3.58946942]
[1773107178987,3.517796,2011.8,2011.0,3.58946942]
[1773107181881,0.00425077,2011.8,2011.0,3.58946942]
[1773107182076,3.48573017,2012.2,2011.0,3.58946942]
[1773107182682,3.48573017,2012.2,2011.2,3.58946942]
[1773107182884,3.48573017,2012.2,2011.4,3.58946942]
[1773107183190,3.48983847,2012.2,2011.4,3.58946942]
[1773107183886,0.0041083,2012.2,2011.4,3.58946942]
[1773107184692,3.49061269,2012.4,2011.4,3.58946942]
[1773107185091,3.48613368,2013.0,2011.4,3.58946942]
[1773107185289,3.48613368,2012.8,2011.4,3.58946942]
[1773107185789,3.48973689,2012.8,2011.4,3.58946942]
[1773107185986,3.48019629,2012.4,2011.4,3.58946942]
[1773107186187,3.48019629,2012.4,2011.6,3.58946942]
[1773107186382,3.48019629,2012.4,2011.6,3.59553549]
[1773107189386,3.20997424,2012.6,2011.7,3.58946942]
[1773107189592,3.20997424,2012.7,2011.7,3.58946942]
[1773107190689,0.00360321,2012.8,2012.0,3.58946942]
[1773107190894,0.00360321,2012.8,2012.2,3.58946942]
[1773107191591,3.10841093,2012.7,2011.9,3.58946942]
[1773107192198,0.00360321,2012.8,2011.9,3.58946942]
[1773107192199,3.1040365,2012.5,2011.9,3.58946942]
[1773107192498,0.00360321,2012.8,2012.2,3.58946942]
[1773107192997,3.10352322,2012.8,2012.2,3.58946942]
[1773107193197,3.10352322,2012.8,2012.2,17.05846942]
[1773107193693,3.10352322,2012.8,2012.3,3.45012343]
[1773107193996,0.00360321,2012.8,2012.3,3.45012343]
[1773107194194,3.35264404,2013.1,2012.5,3.45012343]
[1773107195298,3.35843971,2013.1,2012.5,3.45012343]
[1773107196196,3.35843971,2013.1,2012.4,3.45012343]
[1773107196391,3.35843971,2013.1,2011.6,0.00606607]
[1773107196392,3.35843971,2013.1,2012.2,13.373]
[1773107196693,3.35843971,2013.1,2011.9,3.45012343]
[1773107196895,3.31522487,2012.7,2011.9,3.45012343]
[1773107197492,3.31522487,2012.7,2012.1,3.45012343]
[1773107198995,3.31522487,2012.7,2011.6,3.4561895]
[1773107198996,0.24846,2012.3,2011.6,3.4561895]
[1773107199200,3.05463402,2012.2,2011.6,0.00606607]
[1773107200102,2.95603724,2012.0,2011.6,3.4561895]
[1773107200798,2.95603724,2012.0,2011.6,0.00606607]
[1773107202496,2.93298534,2012.0,2011.7,3.45012343]
[1773107202700,3.66544761,2012.6,2011.7,2.71344626]
[1773107203098,3.66544761,2012.4,2011.7,16.06744626]
[1773107208908,3.63361394,2012.3,2011.7,16.06744626]
[1773107209607,3.54074715,2012.1,2011.8,3.45012343]
[1773107210209,3.78500549,2012.2,2011.8,3.45012343]
[1773107211707,3.78500549,2012.2,2011.7,3.45012343]
[1773107211908,3.78500549,2012.2,2011.7,16.89112343]
[1773107212600,3.78500549,2012.2,2011.6,16.9011895]
[1773107212801,3.66748386,2011.8,2010.9,3.45012343]
[1773107213011,3.66748386,2011.8,2011.1,3.45012343]
[1773107213912,0.24852,2011.8,2011.1,3.45553823]
[1773107215313,3.56455787,2011.8,2011.1,3.45553823]
[1773107217416,3.56455787,2011.8,2011.3,3.49229135]
[1773107222017,3.56455787,2011.8,2011.4,16.99329135]
[1773107222320,3.56455787,2011.8,2011.3,3.49229135]
[1773107223521,0.24852,2011.8,2011.3,3.49229135]
[1773107223916,3.48686746,2011.8,2011.3,3.49229135]
[1773107225123,3.48686746,2011.8,2011.4,17.24096909]
[1773107226417,3.48686746,2011.8,2011.4,3.71996909]
[1773107226620,3.48686746,2011.8,2011.5,13.53]
[1773107227022,3.48686746,2011.8,2011.4,13.533]
[1773107228625,3.48686746,2011.8,2011.4,17.25296909]
[1773107229219,3.48686746,2011.8,2011.2,3.71996909]
[1773107229421,3.46209706,2011.4,2011.1,0.00175682]
[1773107230623,3.46770209,2011.4,2011.1,0.00175682]
[1773107231122,3.46770209,2011.4,2011.1,3.72172591]
[1773107231427,3.21359079,2012.0,2011.1,3.72172591]
[1773107231725,3.20468028,2011.8,2011.1,3.72172591]
[1773107232125,0.24853,2011.7,2011.1,3.72172591]
[1773107232325,3.45956026,2011.7,2011.1,13.55775682]
[1773107232929,3.45956026,2011.7,2011.1,17.27772591]
[1773107238232,3.45956026,2011.7,2011.2,3.71996909]
[1773107239334,3.45956026,2011.7,2011.1,13.57675682]
[1773107239635,3.45956026,2011.7,2011.1,0.00175682]
[1773107239829,3.45956026,2011.7,2011.1,13.57775682]
[1773107240940,3.49055796,2011.3,2011.1,0.00175682]
[1773107241135,3.49055796,2011.3,2010.7,17.29896909]
[1773107241331,3.49055796,2011.3,2010.7,3.71996909]
[1773107241532,3.49055796,2011.3,2010.7,17.29996909]
[1773107241732,3.49055796,2011.3,2010.8,3.71996909]
[1773107242033,3.49055796,2011.3,2010.8,3.7235111]
[1773107243333,3.49055796,2011.3,2010.8,17.3065111]
[1773107243534,0.24858,2011.3,2010.9,3.71996909]
[1773107243734,3.7133218,2011.3,2010.9,3.71996909]
[1773107245331,3.7133218,2011.3,2011.0,13.586]
[1773107245633,3.7133218,2011.3,2011.0,17.30596909]
[1773107246929,3.7133218,2011.3,2010.9,3.71996909]
[1773107247139,3.7133218,2011.3,2011.0,13.589]
[1773107248238,3.7133218,2011.3,2011.0,17.30896909]
[1773107248441,0.24858,2011.3,2011.1,3.71996909]
[1773107248938,3.7133218,2011.3,2011.0,17.31096909]
[1773107249341,0.24858,2011.3,2011.1,3.71996909]
[1773107249839,3.4647418,2011.5,2011.1,3.71996909]
[1773107250636,0.24858,2011.3,2011.1,3.71996909]
[1773107250831,0.24858,2011.3,2011.0,13.591]
[1773107251034,0.24858,2011.3,2011.1,3.71996909]
[1773107251441,0.24858,2011.3,2011.0,13.591]
[1773107251740,0.24858,2011.3,2011.0,17.31096909]
[1773107251940,3.7133218,2011.3,2011.0,17.31096909]
[1773107252440,0.24858,2011.3,2011.0,17.31096909]
[1773107252837,0.24858,2011.3,2011.0,3.71996909]
[1773107253037,0.24858,2011.3,2011.0,17.31596909]
[1773107253234,0.24858,2011.3,2011.1,3.71996909]
[1773107253439,3.68480894,2011.6,2011.1,3.71996909]
[1773107254740,0.24858,2011.3,2011.1,3.71996909]
[1773107254940,3.68480894,2011.6,2011.1,3.71996909]
[1773107255643,0.24858,2011.3,2011.1,3.71996909]
[1773107256842,3.68480894,2011.6,2011.1,3.71996909]
[1773107257742,0.24858,2011.3,2011.1,3.71996909]
[1773107258041,3.68480894,2011.6,2011.1,3.71996909]
[1773107258644,0.24858,2011.3,2011.1,3.71996909]
[1773107259944,3.68480894,2011.5,2011.1,3.71996909]
[1773107260646,3.93338894,2011.3,2011.0,3.7673422]
[1773107261542,0.24858,2011.3,2011.0,3.7673422]
[1773107266742,0.24858,2011.3,2011.1,3.7673422]
[1773107270751,3.69748522,2011.3,2011.0,3.67020204]
[1773107271051,0.24858,2011.3,2011.1,3.67020204]
[1773107271451,0.24853,2011.7,2011.1,3.67020204]
[1773107271651,2.27405282,2012.0,2011.1,3.67020204]
[1773107271652,9.67135725,2012.3,2011.1,3.67020204]
[1773107271854,6.08737703,2012.2,2011.1,3.67020204]
[1773107272052,6.08737703,2012.1,2011.1,3.67020204]
[1773107272344,3.44890522,2012.3,2011.1,3.67020204]
[1773107272549,0.24849,2012.0,2011.1,3.67020204]
[1773107273553,0.24849,2012.0,2011.1,5.64664101]
[1773107273748,0.24849,2012.0,2011.2,3.67020204]
[1773107281958,0.00579755,2012.3,2011.5,3.67020204]
[1773107282158,0.00579755,2012.3,2011.8,3.67020204]
[1773107282363,0.24844,2012.5,2011.9,3.67020204]
[1773107282660,3.69734522,2012.5,2011.9,3.67020204]
[1773107283261,0.24844,2012.5,2011.9,3.67020204]
[1773107283463,0.25461676,2012.5,2011.9,3.67020204]
[1773107286958,3.74947866,2013.0,2011.9,3.67020204]
[1773107287159,6.01856982,2012.9,2011.9,3.67020204]
[1773107287359,0.24844,2012.5,2011.9,3.67020204]
[1773107287562,3.74947866,2013.3,2012.1,3.73960317]
[1773107287763,3.74947866,2013.1,2012.1,3.73960317]
[1773107287963,3.75390844,2013.1,2012.1,3.73960317]
[1773107288865,4.00227844,2013.1,2012.3,3.73960317]
[1773107289063,4.00227844,2013.1,2012.5,3.73960317]
[1773107289468,4.00227844,2013.1,2012.5,17.34060317]
[1773107290465,4.00227844,2013.1,2012.6,3.73960317]
[1773107294665,4.00227844,2013.1,2012.3,0.00439818]
[1773107294862,4.00227844,2013.1,2012.4,3.73960317]
[1773107295063,4.00227844,2013.1,2012.5,17.33660317]
[1773107295664,4.00227844,2013.1,2012.5,3.73960317]
[1773107299570,4.00227844,2013.1,2012.6,3.73960317]
[1773107302672,4.00227844,2013.1,2012.3,0.00439818]
[1773107302872,3.74947866,2012.6,2012.0,3.73960317]
[1773107303077,3.74947866,2012.6,2012.1,3.73960317]
[1773107303272,3.74947866,2013.0,2012.1,3.73960317]
[1773107303774,3.74947866,2013.0,2012.1,3.74370832]
[1773107304771,3.74947866,2013.0,2012.3,3.73960317]
[1773107305978,3.75390844,2013.1,2012.3,3.73960317]
[1773107306178,0.00442978,2013.1,2012.3,3.73960317]
[1773107307080,0.00442978,2013.1,2012.5,3.73960317]
[1773107307275,3.74947866,2013.4,2012.5,3.73960317]
[1773107307579,3.74947866,2013.6,2012.8,3.73960317]
[1773107307879,3.99778866,2013.5,2012.9,3.73960317]
[1773107308382,4.00415687,2013.5,2012.9,3.73960317]
[1773107309478,0.25467821,2013.5,2012.9,3.73960317]
[1773107309681,0.25467821,2013.5,2013.2,3.73960317]
[1773107309975,3.74947866,2013.7,2013.2,3.73960317]
[1773107310182,3.74947866,2013.9,2013.2,3.73960317]
[1773107310780,3.7538681,2013.9,2013.2,3.73960317]
[1773107311080,0.00438944,2013.9,2013.4,3.73960317]
[1773107311279,3.75947866,2014.4,2013.8,3.73960317]
[1773107311678,3.75947866,2014.4,2014.0,3.73960317]
[1773107312282,0.01088461,2014.4,2014.0,3.74441364]
[1773107312487,3.99766866,2014.5,2014.0,3.74441364]
[1773107312788,3.99766866,2014.5,2014.0,0.00481047]
[1773107313279,3.99766866,2014.5,2014.0,3.74441364]
[1773107314285,5.97067357,2014.5,2014.0,0.00481047]
[1773107314488,3.84282031,2014.3,2014.0,3.76042436]
[1773107314687,0.24821,2014.3,2014.0,3.76042436]
[1773107314888,3.84282031,2014.3,2014.0,3.76042436]
[1773107315386,3.84282031,2014.3,2013.6,3.75561389]
[1773107315586,3.59461031,2013.9,2013.6,3.75561389]
[1773107315983,0.24824,2014.0,2013.6,3.75561389]
[1773107316185,3.59461031,2014.4,2013.6,3.75561389]
[1773107316380,3.59892815,2014.4,2013.8,3.75561389]
[1773107316993,0.00431784,2014.4,2013.8,3.75561389]
[1773107317790,3.59892815,2014.4,2013.9,3.75561389]
[1773107319890,0.24819,2014.5,2014.0,3.75561389]
[1773107320894,0.24819,2014.5,2013.9,3.75561389]
[1773107320895,3.59461031,2014.2,2013.9,3.75561389]
[1773107321495,3.84282031,2014.3,2013.9,3.75561389]
[1773107322090,3.84284031,2014.1,2013.7,3.75561389]
[1773107323098,0.24823,2014.1,2013.7,3.75561389]
[1773107324294,3.84284031,2014.1,2013.7,3.75561389]
[1773107325402,0.24823,2014.1,2013.7,3.75561389]
[1773107325602,3.84284031,2014.1,2013.7,3.75561389]
[1773107326606,0.24823,2014.1,2013.7,3.75561389]
[1773107327506,3.84284031,2014.1,2013.7,3.75561389]
[1773107328703,0.24823,2014.1,2013.7,3.75561389]
[1773107329002,3.84278031,2014.6,2013.8,3.75561389]
[1773107330907,3.86905771,2014.4,2013.8,3.75561389]
[1773107332207,3.62085771,2014.1,2013.8,3.75561389]
[1773107334909,3.86907771,2014.2,2013.8,3.75561389]
[1773107336908,0.24822,2014.2,2013.8,3.75561389]
[1773107337610,3.86907771,2014.2,2013.8,3.75561389]
[1773107344419,3.86907771,2014.2,2013.7,3.54327603]
[1773107346813,3.95572814,2014.0,2013.6,3.54712009]
[1773107348519,3.95572814,2014.0,2013.6,0.00384406]
[1773107348818,3.95572814,2014.0,2013.6,3.54712009]
[1773107353421,3.95572814,2014.0,2013.5,3.34447989]
[1773107353622,3.70748814,2013.8,2013.3,17.17227603]
[1773107353817,3.70748814,2013.8,2013.3,3.54327603]
[1773107354220,3.70748814,2013.6,2013.3,3.54327603]
[1773107354425,3.71182483,2013.6,2013.3,3.54967952]
[1773107355124,0.00433669,2013.6,2013.3,3.54967952]
[1773107355927,0.00433669,2013.6,2013.3,0.00640349]
[1773107355928,3.71182483,2013.6,2013.3,0.00640349]
[1773107356425,3.71182483,2013.6,2013.3,3.54967952]
[1773107356621,0.00433669,2013.6,2013.3,3.54967952]
[1773107357420,0.04948386,2013.7,2013.3,3.54967952]
[1773107357624,3.70748814,2014.2,2013.6,3.54327603]
[1773107358021,3.70748814,2014.2,2013.7,3.54327603]
[1773107358216,3.70748814,2014.0,2013.6,17.17727603]
[1773107358628,1.97300491,2014.1,2013.7,3.54327603]
[1773107358822,3.70748814,2014.1,2013.7,3.54327603]
[1773107359430,3.70748814,2014.4,2013.8,3.54327603]
[1773107361025,4.36694078,2014.7,2013.8,3.54327603]
[1773107361219,9.77685952,2014.6,2013.8,3.54327603]
[1773107361419,3.70748814,2014.6,2013.8,3.54327603]
[1773107362631,3.70748814,2014.6,2014.0,3.54327603]
[1773107363531,0.24817,2014.7,2014.0,3.54327603]
[1773107363732,0.24817,2014.7,2014.2,3.54327603]
[1773107364732,3.95558814,2015.2,2014.6,3.54327603]
[1773107364931,3.70748814,2015.4,2014.9,3.54327603]
[1773107365133,3.70748814,2015.4,2014.9,3.54779875]
[1773107365630,2.22104491,2015.7,2014.9,3.54779875]
[1773107365631,3.70748814,2015.6,2014.9,3.54779875]
[1773107367328,3.70748814,2014.9,2014.4,3.54327603]
[1773107368332,3.71201086,2014.9,2014.4,3.54789723]
[1773107368831,3.70748814,2014.8,2014.4,3.54789723]
[1773107370637,3.71201086,2014.9,2014.4,3.54789723]
[1773107370840,0.00452272,2014.9,2014.4,3.54789723]
[1773107371337,3.70748814,2015.2,2014.4,3.54789723]
[1773107373345,3.70748814,2015.2,2014.6,3.27560769]
[1773107373838,4.11877078,2015.7,2014.6,3.27560769]
[1773107373839,3.34080443,2015.7,2014.6,3.27560769]
[1773107376049,3.34080443,2015.5,2014.6,3.27560769]
[1773107376350,3.34080443,2015.5,2014.8,3.27560769]
[1773107377754,3.34080443,2015.3,2014.7,3.27560769]
[1773107377955,3.34080443,2015.1,2014.7,3.27560769]
[1773107379255,0.2481,2015.2,2014.7,3.27560769]
[1773107379952,3.58890443,2015.2,2014.7,3.27560769]
[1773107380156,0.2481,2015.2,2014.7,3.27560769]
[1773107380753,3.58890443,2015.2,2014.7,3.27560769]
[1773107382952,3.58890443,2015.2,2014.4,0.0046212]
[1773107383153,3.58890443,2015.2,2014.5,3.27560769]
[1773107383352,3.58890443,2015.2,2013.5,10.40878747]
[1773107383353,3.34080443,2014.7,2013.8,3.27560769]
[1773107383555,3.34080443,2014.5,2013.8,3.27560769]
[1773107384360,3.34542562,2014.5,2013.8,3.28048146]
[1773107384762,3.34080443,2014.3,2013.8,3.28048146]
[1773107387863,3.34542562,2014.5,2013.8,3.28048146]
[1773107391167,3.38458154,2014.5,2013.8,3.28048146]
[1773107392471,3.63277154,2014.5,2013.8,3.28048146]
[1773107394269,3.63277154,2014.5,2013.8,0.00487377]
[1773107394767,3.63277154,2014.5,2013.8,3.25236851]
[1773107395071,3.38458154,2014.5,2013.8,3.25236851]
[1773107396970,3.63277154,2014.5,2013.8,3.25236851]
[1773107401573,3.37996035,2014.7,2013.8,3.25236851]
[1773107401767,3.37996035,2014.9,2013.8,3.25236851]
[1773107401964,3.37996035,2015.1,2014.0,3.24749474]
[1773107402167,3.37996035,2015.4,2014.0,3.24749474]
[1773107402771,3.37996035,2015.2,2014.2,3.24749474]
[1773107404172,3.37996035,2015.2,2014.4,3.26179683]
[1773107404676,0.24808,2015.3,2014.4,3.26179683]
[1773107404974,3.47909555,2015.3,2014.4,3.26179683]
[1773107406173,0.24808,2015.3,2014.4,3.26179683]
[1773107406375,3.23101555,2015.7,2014.5,3.26179683]
[1773107407073,3.23101555,2015.7,2014.7,3.26179683]
[1773107408171,3.23101555,2015.5,2014.7,3.26179683]
[1773107408372,3.23101555,2015.5,2014.9,3.26179683]
[1773107409879,3.47906555,2015.6,2014.9,3.26179683]
[1773107410680,3.23101555,2016.0,2014.9,3.26179683]
[1773107411672,3.23101555,2015.8,2015.0,3.26179683]
[1773107413172,7.34978633,2016.4,2015.0,3.26179683]
[1773107413374,2.10872667,2016.7,2015.1,3.26179683]
[1773107413678,3.23101555,2016.6,2015.3,3.26179683]
[1773107413875,3.23101555,2016.6,2015.5,3.26179683]
[1773107414773,0.24788,2017.0,2015.5,3.26179683]
[1773107414774,3.23101555,2016.9,2015.5,3.26179683]
[1773107414977,3.23101555,2016.9,2015.7,3.26179683]
[1773107415177,3.23101555,2016.9,2015.9,3.26179683]
[1773107416170,0.24788,2017.0,2015.9,3.26179683]
[1773107416375,3.47889555,2017.0,2015.9,3.26179683]
[1773107417177,3.23101555,2017.5,2015.9,3.26179683]
[1773107417381,3.94509872,2018.1,2016.4,3.26179683]
[1773107417582,4.00824716,2018.2,2016.9,3.26179683]
[1773107417886,4.00824716,2018.2,2016.9,3.26540947]
[1773107418483,3.23101555,2019.0,2017.3,3.26179683]
[1773107418678,3.23101555,2018.8,2017.7,3.26179683]
[1773107418983,0.24767,2018.7,2017.9,3.26179683]
[1773107419178,3.23101555,2019.0,2017.9,3.26179683]
[1773107419378,3.23101555,2019.3,2017.9,3.26179683]
[1773107419876,3.23101555,2019.3,2018.0,3.26179683]
[1773107420285,3.47859555,2019.4,2018.0,3.26179683]
[1773107420580,3.47859555,2019.4,2018.2,3.26179683]
[1773107420783,3.47859555,2019.4,2018.4,3.26179683]
[1773107421085,3.47859555,2019.4,2018.4,3.26629209]
[1773107421877,3.47859555,2019.4,2018.4,0.00449526]
[1773107422978,0.24761,2019.2,2018.0,3.26179683]
[1773107423184,7.207,2019.4,2018.0,3.26179683]
[1773107423185,3.23101555,2019.1,2018.0,3.26179683]
[1773107423379,3.23101555,2018.9,2017.6,3.26179683]
[1773107423578,3.23101555,2018.7,2017.6,3.26179683]
[1773107424083,3.23551082,2018.7,2017.6,3.26562982]
[1773107428183,3.23101555,2018.5,2017.6,3.26562982]
[1773107428882,3.23101555,2018.1,2017.2,3.26179683]
[1773107429784,3.23101555,2018.1,2017.2,3.26545903]
[1773107430285,3.23101555,2017.9,2017.2,0.0036622]
[1773107430985,3.23101555,2017.7,2017.2,3.26545903]
[1773107431179,3.23101555,2018.3,2017.2,3.26545903]
[1773107433191,3.23101555,2018.1,2017.2,3.26545903]
[1773107433788,3.27814648,2017.9,2017.2,0.0036622]
[1773107434287,3.27814648,2017.9,2017.2,3.22707342]
[1773107436893,3.27814648,2017.7,2017.2,0.0036622]
[1773107437492,0.24778,2017.8,2017.2,3.22707342]
[1773107438591,3.27814648,2018.2,2017.2,3.22707342]
[1773107438797,3.27814648,2018.6,2017.5,3.22341122]
[1773107439091,0.00449527,2018.7,2017.8,3.22341122]
[1773107440190,3.27814648,2019.1,2018.0,2.94821186]
[1773107440388,3.27814648,2019.1,2018.2,3.22341122]
[1773107440784,0.24763,2019.0,2018.3,3.22341122]
[1773107440989,0.24756,2019.7,2018.6,3.22341122]
[1773107441182,2.98278382,2019.7,2018.6,3.22341122]
[1773107441388,2.98278382,2019.7,2018.7,3.22341122]
[1773107441591,2.98278382,2019.7,2018.7,3.22936032]
[1773107441787,0.25139299,2019.7,2018.7,3.22936032]
[1773107442592,3.36174854,2019.7,2018.7,3.22936032]
[1773107443986,3.36174854,2019.7,2018.7,0.0059491]
[1773107444997,3.36174854,2019.7,2018.7,3.22936032]
[1773107445197,3.09798181,2019.6,2018.7,3.22936032]
[1773107445494,3.10200993,2019.4,2018.7,0.0059491]
[1773107446397,3.0952162,2019.2,2018.7,0.0059491]
[1773107446791,3.0952162,2019.2,2018.5,3.22341122]
[1773107446992,3.0952162,2019.2,2017.8,3.22341122]
[1773107447192,7.27083299,2019.7,2017.8,3.22341122]
[1773107447193,3.08842644,2019.0,2017.8,3.22341122]
[1773107447794,3.08842644,2019.0,2017.8,3.22930965]
[1773107449995,0.24762,2019.1,2017.9,3.12086706]
[1773107450197,3.07092935,2019.4,2018.2,3.12086706]
[1773107450393,3.07092935,2019.4,2018.1,2.94821186]
[1773107450394,0.00383299,2019.7,2018.8,3.12086706]
[1773107450798,3.06815991,2019.7,2018.8,43.92086706]
[1773107451005,3.06815991,2019.7,2018.9,3.12086706]
[1773107451398,0.00383299,2019.7,2018.9,3.12086706]
[1773107451600,3.14610501,2019.7,2018.9,3.12086706]
[1773107452498,0.00383299,2019.7,2018.9,3.12086706]
[1773107453006,3.13292085,2019.7,2018.9,3.12086706]
[1773107454204,3.5489793,2019.6,2018.9,3.12086706]
[1773107454406,0.24756,2019.6,2018.9,3.12086706]
[1773107454601,0.00383299,2019.7,2018.9,3.12086706]
[1773107454798,3.30525229,2019.7,2018.9,3.12086706]
[1773107455202,0.00383299,2019.7,2018.9,3.12086706]
[1773107455801,0.2475,2020.1,2018.9,3.12086706]
[1773107456003,0.2475,2020.1,2019.1,3.12086706]
[1773107456305,0.24744,2020.6,2019.4,3.12086706]
[1773107456700,3.3014193,2020.9,2019.7,3.12086706]
[1773107456902,0.00407405,2020.6,2019.7,3.12086706]
[1773107457106,3.5488693,2020.5,2019.7,3.12086706]
[1773107457308,0.24745,2020.5,2019.7,3.12086706]
[1773107457808,0.00407405,2020.6,2019.7,3.12086706]
[1773107459913,3.30549335,2020.6,2019.7,3.12086706]
[1773107460209,3.5488693,2020.5,2019.7,3.12086706]
[1773107460612,0.00407405,2020.6,2019.8,3.12086706]
[1773107460806,3.3014193,2021.5,2020.1,3.12086706]
[1773107461007,3.5487293,2021.6,2020.4,3.12086706]
[1773107461514,3.5487293,2021.6,2020.7,3.12086706]
[1773107461714,3.5487893,2021.1,2020.3,3.12086706]
[1773107462108,0.24737,2021.1,2020.3,3.12086706]
[1773107462412,3.5487893,2021.1,2020.3,3.12086706]
[1773107462713,3.5487893,2021.1,2020.0,3.12086706]
[1773107463109,3.5487893,2021.1,2019.2,0.24759]
[1773107463110,3.5488493,2020.7,2019.7,3.12086706]
[1773107464813,0.24743,2020.7,2019.7,3.12086706]
[1773107465215,3.40542077,2020.7,2019.7,3.12086706]
[1773107465415,3.15799077,2021.1,2019.7,3.12086706]
[1773107465617,3.15799077,2020.9,2019.7,3.12086706]
[1773107467419,7.58236,2021.2,2019.7,3.12086706]
[1773107467420,3.15799077,2020.7,2019.7,3.12086706]
[1773107468414,10.28321186,2021.2,2019.7,3.12086706]
[1773107468415,3.15799077,2020.5,2019.7,3.12086706]
[1773107470614,3.15799077,2020.5,2019.5,3.12347182]
[1773107470816,3.15799077,2020.3,2019.5,3.12347182]
[1773107471022,3.15799077,2020.3,2019.4,0.00513023]
[1773107471918,3.15799077,2020.1,2019.4,0.00513023]
[1773107472120,3.15986582,2020.1,2019.4,0.00513023]
[1773107472413,3.15986582,2020.1,2019.4,3.12860205]
[1773107472613,0.00187505,2020.1,2019.4,3.12860205]
[1773107473524,3.15986582,2020.1,2019.4,3.12860205]
[1773107474618,3.15986582,2020.1,2019.4,0.00513023]
[1773107476530,3.15986582,2020.1,2019.0,3.12347182]
[1773107476818,3.15799077,2019.9,2019.0,3.12347182]
[1773107477620,3.15799077,2019.7,2019.0,3.12735808]
[1773107478426,3.15799077,2019.5,2019.0,0.00388626]
[1773107479025,3.15799077,2019.5,2019.0,3.12735808]
[1773107481928,3.15799077,2019.5,2019.0,0.00388626]
[1773107482826,3.15799077,2019.3,2018.1,3.12347182]
[1773107483124,10.49599077,2019.3,2018.1,3.12347182]
[1773107483430,10.49599077,2019.3,2018.3,3.12347182]
[1773107483623,10.49599077,2019.3,2018.3,3.12965805]
[1773107483830,3.15799077,2019.2,2018.3,3.12965805]
[1773107486028,10.49399077,2019.1,2018.3,3.12965805]
[1773107487429,3.13591381,2019.0,2018.3,3.12965805]
[1773107490141,3.38354381,2019.0,2018.3,0.00618623]
[1773107491345,3.15799077,2018.3,2017.6,3.12347182]
[1773107491541,10.48599077,2018.2,2017.6,3.12347182]
[1773107491745,3.15799077,2018.1,2017.6,3.12347182]
[1773107492350,0.00470268,2018.1,2017.6,3.12800285]
[1773107492749,3.16269345,2018.1,2017.6,3.12800285]
[1773107494350,7.33170268,2018.1,2017.6,3.12800285]
[1773107494649,10.53255112,2018.1,2017.6,3.12800285]
[1773107495944,7.325,2018.2,2017.6,3.12800285]
[1773107496650,3.20084844,2018.4,2017.6,3.12800285]
[1773107496851,7.325,2018.3,2017.6,3.12800285]
[1773107497049,7.33023449,2018.3,2017.6,3.12800285]
[1773107497249,10.53108293,2018.3,2017.6,3.12800285]
[1773107497850,3.20084844,2018.2,2017.6,3.12800285]
[1773107498646,3.20084844,2018.2,2017.6,0.00453103]
[1773107500043,0.00523449,2018.3,2017.6,3.07468611]
[1773107500651,3.20608293,2018.3,2017.6,3.07468611]
[1773107501948,10.52508293,2018.3,2017.6,3.07468611]
[1773107502851,3.20084844,2019.2,2017.8,3.07015508]
[1773107503048,3.20084844,2019.2,2018.0,3.07015508]
[1773107503248,3.20084844,2019.4,2018.2,3.07015508]
[1773107503551,10.51784844,2019.4,2018.4,3.07015508]
[1773107503855,3.20084844,2019.3,2018.4,3.07015508]
[1773107504749,0.0055397,2019.4,2018.4,3.07015508]
[1773107505149,3.20638814,2019.4,2018.4,3.07015508]
[1773107505454,0.0055397,2019.4,2018.4,3.07015508]
[1773107505651,7.3225397,2019.4,2018.4,3.07015508]
[1773107506948,3.20084844,2019.3,2018.4,3.07015508]
[1773107510953,3.04390013,2019.1,2017.7,3.1224684]
[1773107511253,7.313,2019.0,2017.8,40.8]
[1773107511455,7.313,2019.0,2017.9,3.1224684]
[1773107511655,3.04390013,2018.9,2017.9,3.1224684]
[1773107520154,3.04390013,2018.7,2017.9,3.1224684]
[1773107521859,3.04390013,2018.5,2017.8,3.1224684]
[1773107522255,3.04390013,2018.7,2017.8,3.1224684]
[1773107526261,3.29157013,2018.7,2017.8,3.1224684]
[1773107526969,3.29157013,2018.7,2017.6,2.81247631]
[1773107527166,2.98466004,2018.5,2017.6,2.81247631]
[1773107528863,2.98466004,2018.3,2017.6,2.81247631]
[1773107529463,2.98466004,2018.2,2017.6,2.81247631]
[1773107530062,2.98466004,2018.2,2017.6,0.00453103]
[1773107531161,2.98466004,2018.0,2017.6,0.00453103]
[1773107531762,2.98466004,2018.6,2017.6,2.81247631]
[1773107531961,10.25066004,2018.5,2017.6,2.81247631]
[1773107532570,2.98466004,2018.4,2017.6,2.81247631]
[1773107540573,2.98466004,2018.3,2017.6,2.81247631]
[1773107542881,2.98466004,2018.2,2017.6,2.81247631]
[1773107544975,2.98466004,2018.6,2017.6,2.81247631]
[1773107545181,10.21766004,2018.6,2017.6,2.81247631]
[1773107545681,2.98466004,2018.6,2017.6,2.81247631]
[1773107551488,2.98466004,2018.5,2017.6,2.81247631]
[1773107555493,3.01484307,2019.0,2018.0,2.74368206]
[1773107555689,3.01484307,2018.9,2018.0,2.74368206]
[1773107557989,3.01484307,2018.9,2017.7,2.74368206]
[1773107558189,3.01484307,2018.7,2017.7,2.74368206]
[1773107558795,3.01484307,2018.7,2017.8,2.74368206]
[1773107560295,3.01484307,2018.7,2017.8,2.99145206]
[1773107560496,3.01484307,2019.1,2018.1,2.74368206]
[1773107561490,3.01484307,2019.2,2018.1,2.74368206]
[1773107566697,3.01484307,2019.2,2018.4,2.74368206]
[1773107567593,3.01484307,2019.2,2018.8,4.64373002]
[1773107567798,3.01484307,2019.2,2018.9,2.68181936]
[1773107568097,3.01484307,2019.2,2018.8,4.64373002]
[1773107569097,3.01484307,2019.2,2018.8,1.96191066]
[1773107569797,3.01484307,2019.2,2018.7,2.68181936]
[1773107570100,3.01484307,2019.2,2018.6,4.64373002]
[1773107570698,3.01484307,2019.2,2018.8,4.64373002]
[1773107570901,2.08059991,2019.2,2018.8,4.64373002]
[1773107571290,2.08059991,2019.2,2018.9,2.68181936]
[1773107571491,0.41764235,2019.4,2019.0,4.72224975]
[1773107571691,0.0055397,2019.4,2019.1,2.76033909]
[1773107571896,0.41519793,2019.7,2019.3,4.7194799]
[1773107572098,0.41519793,2019.7,2019.2,2.75756924]
[1773107572299,0.41519793,2019.7,2018.9,4.7194799]
[1773107572895,0.41679883,2019.7,2019.0,2.75793867]
[1773107573099,0.41679883,2019.7,2019.2,2.75793867]
[1773107573299,0.44461734,2019.6,2019.2,2.75793867]
[1773107573500,0.44461734,2019.6,2019.1,4.70909385]
[1773107575507,0.44877119,2019.7,2019.2,2.74711525]
[1773107576105,0.44877119,2019.7,2019.0,2.75019478]
[1773107576705,0.44877119,2019.7,2018.9,1.96762172]
[1773107576706,0.43453452,2019.5,2018.9,0.00571106]